Cogmind - Beta 11.1 @@@ ROGUE MODE // 2022.07.30 @ 13:37:03 Player: tkc Result: Destroyed by H-77 Assassin with Coil Gun Performance ------------- Evolutions (5) 2500 Regions Visited (11) 2200 Robots Destroyed (98) 490 Value Destroyed (2275) 2275 Prototype IDs (30) 600 Alien Tech Used (0) 0 Bonus (1007) 1007 TOTAL SCORE: 9072 Bonus ------- Follower Combat Kills 33 Aligned with FarCom 300 Met Warlord at Base 500 MAIN.C Attacked Warlord 500 Friendly Fire -326 Cogmind --------- Core Integrity 0/1000 Matter 300/300 Energy 100/100 System Corruption 25% Temperature Cool (9) Movement Core (350) Ox6 Location -5/Warlord Parts ------- > --- POWER (1) -------- (None) > --- PROPULSION (5) --- (None) > --- UTILITY (9) ------ Large Storage Unit Advanced Signal Interpreter > --- WEAPON (2) ------- (None) > --- INVENTORY (15) --- Neutrino Core Gravmag System Antigrav System Advanced Heat Sink Vortex Driver (30) Enhanced Gauss Cannon Guided EMP Blaster Mini Smartbomb Launcher Mini Smartbomb Launcher Mini Smartbomb Launcher Mini Smartbomb Launcher Spear Peak State ------------ > --- POWER ------------ Micro Fission Core > --- PROPULSION ------- Armored Medium Treads Antigrav System Antigrav System Antigrav System Improved Antigrav System > --- UTILITY ---------- Large Storage Unit Advanced Signal Interpreter Terrain Scan Processor Advanced Melee Analysis Suite Hardened Heavy Armor Plating Hacking Suite System Shield > --- WEAPON ----------- Vortex Rail > --- INVENTORY -------- Neutrino Core Armored Medium Treads Armored Medium Treads Armored Medium Treads Armored Wheel Nuclear Pulse Thruster Vortex Driver Enhanced Gauss Cannon Guided EMP Blaster Mini Smartbomb Launcher Mini Smartbomb Launcher Mini Smartbomb Launcher Mini Smartbomb Launcher Spear [Rating: 82] Favorites ----------- Power Heavy Ion Engine Engine Heavy Ion Engine Power Core Light Nuclear Core Propulsion Wheel Treads Light Treads Leg Flexi-carbon Leg Wheel Wheel Hover Unit Linear Gravjet Utility Large Storage Unit Device Improved Terrain Scanner Storage Large Storage Unit Processor Terrain Scan Processor Hackware System Shield Protection Light Armor Plating Weapon Spear Energy Gun Particle Gun Energy Cannon EM Pulse Cannon Ballistic Gun Heavy Assault Rifle Ballistic Cannon Heavy Flak Cannon Launcher Mini Smartbomb Launcher Special Weapon Mining Laser Impact Weapon Hammer Slashing Weapon Chainsword Piercing Weapon Spear Special Melee Weapon Datajack Build | -11 -10 -10 -10 -9 -8 -7 -6 -5 -5 -5 -5 ------- Run | Scr Mat Min Exi Min Mat Fac Fac Fac Upp Upp War Slots Evolved 10 | . . . . . 4 2 2 2 . . . Power . | . . . . . . . . . . . . Propulsion 3 | . . . . . . 1 1 1 . . . Utility 7 | . . . . . 4 1 1 1 . . . Weapon . | . . . . . . . . . . . . Parts Attached 185 | 8 23 7 1 1 67 11 36 4 . 2 25 Power 15 | 1 2 1 . . 4 . 5 . . 1 1 Engine 8 | 1 1 1 . . 4 . 1 . . . . Core 7 | . 1 . . . . . 4 . . 1 1 Reactor . | . . . . . . . . . . . . Propulsion 44 | 2 2 2 . . 13 1 7 2 . . 15 Treads 13 | . 2 . . . 9 . . . . . 2 Leg 7 | . . . . . . . 1 . . . 6 Wheel 16 | 2 . 2 . . 4 1 5 1 . . 1 Hover 8 | . . . . . . . 1 1 . . 6 Flight . | . . . . . . . . . . . . Utility 54 | 3 3 . . . 24 6 13 1 . 1 3 Device 11 | 2 . . . . 6 1 2 . . . . Storage 6 | 1 1 . . . 2 . 1 1 . . . Processor 9 | . . . . . 3 2 2 . . 1 1 Hackware 8 | . . . . . . 2 6 . . . . Protection 20 | . 2 . . . 13 1 2 . . . 2 Artifact . | . . . . . . . . . . . . Weapon 72 | 2 16 4 1 1 26 4 11 1 . . 6 Energy Gun 9 | . 4 1 . 1 2 . . . . . 1 Energy Cannon 4 | . . . . . 2 . . . . . 2 Ballistic Gun 31 | 2 7 3 . . 14 2 3 . . . . Ballistic Cannon 1 | . . . . . . . 1 . . . . Launcher 5 | . . . . . . . 3 1 . . 1 Special Weapon 2 | . 1 . . . . . 1 . . . . Impact Weapon 11 | . 4 . . . 6 . 1 . . . . Slashing Weapon 3 | . . . . . . 2 1 . . . . Piercing Weapon 4 | . . . . . 2 . 1 . . . 1 Special Melee Weapon 2 | . . . 1 . . . . . . . 1 Unidentified Prototypes 7 | . . . . . 4 . . 1 . . 2 Parts Lost 66 | . 3 4 . . 10 . 28 . . . 21 Power 8 | . 1 1 . . 2 . 3 . . . 1 Propulsion 22 | . . 2 . . 1 . 7 . . . 12 Utility 28 | . 1 . . . 7 . 13 . . . 7 Weapon 8 | . 1 1 . . . . 5 . . . 1 Highest Loss Streak 19 | . 1 4 . . 7 . 14 . . . 19 To Critical Strikes . | . . . . . . . . . . . . Average Slot Usage (%) 91 | . 99 97 81 85 94 97 78 70 82 85 87 Engine 5 | . 6 4 14 14 8 7 2 . . . . Core 2 | . 7 9 . . . . 1 . . 2 4 Treads 10 | . 23 18 . . 11 15 7 . . . 2 Wheel 10 | . 4 8 28 28 6 7 7 19 23 23 18 Hover 1 | . . . . . . . 1 1 5 5 5 Device 4 | . 5 . . . 5 6 5 5 5 5 3 Storage 8 | . 14 14 14 14 8 7 6 4 5 5 5 Processor 11 | . . . . . 15 15 9 11 11 11 17 Hackware 5 | . . . . . . 10 17 11 11 11 10 Protection 11 | . 8 14 14 14 19 9 4 5 5 5 4 Energy Gun 2 | . 9 11 . 14 . . . . . . . Ballistic Gun 6 | . 12 8 . . 11 3 3 . . . . Impact Weapon 1 | . 4 7 . . 2 . 1 . . . . Slashing Weapon 1 | . . . . . . 5 4 . . . . Piercing Weapon 2 | . . . . . 3 4 . 5 5 5 3 Naked Turns . | . . . . . . . . . . . . Heaviest Build 61 | 13 33 33 27 34 44 45 45 47 47 61 61 Greatest Support 80 | 20 40 40 26 26 44 44 44 42 42 42 80 Greatest Overweight (x) 14 | . 1 1 1 1 11 2 14 1 1 1 8 Average Overweight (x) . | . . . . 1 1 1 1 . 1 1 . Largest Inventory Capacity 15 | 8 15 15 15 15 15 15 15 15 15 15 15 Average Capacity 14 | 7 14 15 15 15 14 15 12 13 15 15 15 Most Carried 15 | 8 15 15 15 15 15 15 15 12 12 12 15 Average Carried 13 | 3 13 13 14 14 14 14 10 6 12 10 12 Final Capacity 15 | 8 15 15 15 15 15 15 5 15 15 15 15 Final Carried 15 | 8 15 10 15 14 15 15 4 12 12 11 13 Class Distribution -------------------- 27% | Mutant 25% | Scavenger-Mutant 14% | Assassin 13% | Hacker-Assassin 10% | Hacker-Mutant 3% | Scavenger-Assassin 3% | Scavenger-Skirmisher Dominant Class ---------------- Mutant | -10/Materials Mutant | -10/Mines Mutant | -10/Exiles Mutant | -9/Mines Scavenger-Mutant | -8/Materials Hacker-Assassin | -7/Factory Hacker-Assassin | -6/Factory Hacker-Mutant | -5/Factory Hacker-Mutant | -5/Upper Caves Scavenger-Mutant | -5/Upper Caves Scavenger-Mutant | -5/Warlord Resources | -11 -10 -10 -10 -9 -8 -7 -6 -5 -5 -5 -5 ----------- Run | Scr Mat Min Exi Min Mat Fac Fac Fac Upp Upp War Matter Collected 3095 | 368 477 122 32 42 1111 92 174 . . 218 459 Remotely . | . . . . . . . . . . . . Salvage Created 3780 | 150 740 150 . . 1670 162 529 . . 220 159 Parts 217 | 10 42 7 . . 91 17 31 . . 7 12 Haulers Intercepted 4 | . 1 . . . 3 . . . . . . Recyclers Shooed 4 | . 1 . . . 3 . . . . . . Parts Field Recycled . | . . . . . . . . . . . . Retrieved Matter . | . . . . . . . . . . . . Parts Self-Destructed 2 | . . . . . . . . . . 2 . Prevented 2 | . . . . . . . . . . 2 . Kills | -11 -10 -10 -10 -9 -8 -7 -6 -5 -5 -5 -5 ------- Run | Scr Mat Min Exi Min Mat Fac Fac Fac Upp Upp War Combat Hostiles Destroyed 51 | . 13 3 . . 18 1 7 . . 9 . Melee 2 | . . . . . . . 2 . . . . Guns 34 | . 13 2 . . 18 1 . . . . . AOE 12 | . . . . . . . 3 . . 9 . Classes Destroyed 15 | 3 6 . . . 2 1 1 . . . 2 Worker 6 | 2 . . . . 2 1 1 . . . . Builder 12 | . 1 . . . 4 2 5 . . . . Tunneler 5 | 2 . 1 . . 1 . 1 . . . . Hauler 4 | . 1 . . . 3 . . . . . . Recycler 11 | 1 2 . . . 7 1 . . . . . Operator 5 | . 2 . . . 2 . 1 . . . . Watcher 4 | . 1 . . . 3 . . . . . . Swarmer 13 | . 3 . . . 6 . . . . 4 . Grunt 25 | . 10 3 . . 6 . 3 . . 3 . Protector 1 | . . . . . . . . . . . 1 Sentry 4 | . . . . . 4 . . . . . . Specialist 1 | . . . . . . . . . . . 1 Hunter 4 | . . . . . 2 . . . . 2 . Programmer 2 | . . . . . . 1 1 . . . . Assembled 3 | . . . . . . . 3 . . . . Thug 1 | . . . . . . . 1 . . . . Best Kill Streak 5 | 2 5 2 . . 5 1 3 . . 4 . Combat Bots Only 5 | . 5 2 . . 3 1 3 . . 4 . Max Kills in Single Turn 4 | 1 1 1 . . 1 1 4 . . 3 1 Gunslinging . | . . . . . . . . . . . . Exploded 3 | . . . . . . . 3 . . 3 . Melee 1 | . . . . . . . 1 . . . . Uniques/NPCs Destroyed . | . . . . . . . . . . . . Combat | -11 -10 -10 -10 -9 -8 -7 -6 -5 -5 -5 -5 -------- Run | Scr Mat Min Exi Min Mat Fac Fac Fac Upp Upp War Damage Taken 10087 | . 712 397 . . 1722 152 3318 66 . 296 3424 Core 2220 | . 82 106 . . 156 29 835 44 . . 968 Absorbed by Shields . | . . . . . . . . . . . . Redirected to Shielding 181 | . . . . . 147 . . . . . 34 Regen/Repaired (Parts) 119 | . . . . . 119 . . . . . . Core Remaining (%) 58 | 100 . . . 24 71 95 1 . . . . Volleys Fired 240 | 14 82 9 . . 106 3 10 1 . 13 2 Largest 2 | 2 2 2 . . 2 2 2 1 . 1 1 Hottest 115 | 40 115 115 . . 83 50 55 80 . 80 45 Shots Fired 435 | 28 150 18 . . 206 6 11 1 . 13 2 Gun 400 | 28 143 18 . . 200 6 3 . . . 2 Cannon 7 | . . . . . 6 . 1 . . . . Launcher 20 | . . . . . . . 6 1 . 13 . Special 8 | . 7 . . . . . 1 . . . . Kinetic 352 | 28 113 1 . . 200 6 4 . . . . Thermal 54 | . 37 17 . . . . . . . . . Explosive 20 | . . . . . . . 6 1 . 13 . Electromagnetic 6 | . . . . . 6 . . . . . . Entropic 2 | . . . . . . . . . . . 2 Robot Hit Streak 18 | 5 18 6 . . 9 8 11 . . 13 . Robot Miss Streak 6 | 3 6 2 . . 4 . 1 . . . 2 Penetration Max . | . . . . . . . . . . . . Secondary Targets 7 | . 4 1 . . 2 . . . . . . Max Gunslinging Chain 1 | . 1 1 . . 1 . . . . . . Shots Hit Robots 325 | 14 81 14 . . 143 13 26 1 . 13 20 Core Hits 162 | 6 32 5 . . 59 6 26 . . 17 11 Critical Kills . | . . . . . . . . . . . . Critical Parts Destroyed 5 | . 1 . . . 2 . 2 . . . . Critical Strikes 12 | . 1 3 . . 2 2 3 . . 1 . Burn 3 | . . 3 . . . . . . . . . Destroy 2 | . 1 . . . 1 . . . . . . Smash 3 | . . . . . 1 . 2 . . . . Sever 1 | . . . . . . 1 . . . . . Impale 3 | . . . . . . 1 1 . . 1 . Melee Attacks 194 | . 27 1 . . 38 38 56 13 . 1 20 Impact 77 | . 27 1 . . 29 . 20 . . . . Slashing 55 | . . . . . . 24 31 . . . . Piercing 62 | . . . . . 9 14 5 13 . 1 20 Sneak Attacks 43 | . 3 1 . . 5 5 8 1 . . 20 Combat Hostiles . | . . . . . . . . . . . . Follow-up Attacks . | . . . . . . . . . . . . Damage Inflicted 8225 | 178 991 194 . . 2267 511 2176 60 . 1611 237 Guns 3052 | 178 825 151 . . 1756 101 41 . . . . Cannons 94 | . . . . . 94 . . . . . . Explosions 2486 | . . . . . . . 936 . . 1550 . Melee 2476 | . 166 43 . . 417 410 1199 60 . 61 120 Ramming 117 | . . . . . . . . . . . 117 Kinetic 2641 | 178 565 . . . 1756 101 41 . . . . Thermal 566 | . 260 151 . . . . 155 . . . . Explosive 2331 | . . . . . . . 781 . . 1550 . Electromagnetic 94 | . . . . . 94 . . . . . . Impact 829 | . 166 43 . . 249 . 371 . . . . Slashing 950 | . . . . . . 319 631 . . . . Piercing 697 | . . . . . 168 91 197 60 . 61 120 Highest Corruption 24 | . 5 5 5 5 . . 16 . . . 24 Average Corruption 4 | . 3 5 5 5 . . 15 . . . 5 Corruption Purged . | . . . . . . . . . . . . Corruption Blocked . | . . . . . . . . . . . . Effects 76 | . 27 10 10 5 . . 4 . . . 20 Message Errors 18 | . 5 4 1 1 . . 1 . . . 6 Matter Fused 15 | . 7 1 3 . . . . . . . 4 Heat Flow Errors 14 | . 6 2 . . . . 2 . . . 4 Energy Discharges 11 | . 4 . 2 4 . . . . . . 1 Parts Rejected 1 | . . . . . . . 1 . . . . Data Loss (minor) 11 | . 4 1 2 . . . . . . . 4 Data Loss (major) 2 | . . . 1 . . . . . . . 1 Misfires 2 | . 1 1 . . . . . . . . . Alerts 2 | . . 1 1 . . . . . . . . Overload Shots . | . . . . . . . . . . . . Overflow Damage 811 | . 101 13 . . 87 24 403 40 . 138 5 Projectiles . | . . . . . . . . . . . . Explosions 74 | . . . . . . . 46 . . 28 . Melee 737 | . 101 13 . . 87 24 357 40 . 110 5 Knockbacks 8 | . 1 1 . . 1 . 2 . . . 3 Impact 7 | . 1 1 . . 1 . 1 . . . 3 Kinetic . | . . . . . . . . . . . . Secondary 1 | . . . . . . . 1 . . . . Self-Inflicted Damage 304 | . . . . . . . 182 67 . . 55 Shots 4 | . . . . . . . 3 1 . . . Rammed 16 | . . . . . . . . . . . 16 Targets Rammed 16 | . . . . . . . . . . . 16 Kicked . | . . . . . . . . . . . . Crushed . | . . . . . . . . . . . . Highest Temperature 695 | . 266 695 . . 196 16 248 20 . 181 254 Average Temperature 101 | . 77 314 . . 41 8 86 15 . 67 94 Received Heat Transfer 1740 | . 339 222 . . 684 . 378 . . 54 63 Effects 20 | . . 20 . . . . . . . . . Shutdowns 4 | . . 4 . . . . . . . . . Energy Bleed 3 | . . 3 . . . . . . . . . Interference 2 | . . 2 . . . . . . . . . Matter Decay 1 | . . 1 . . . . . . . . . Short Circuit 2 | . . 2 . . . . . . . . . Damage (minor) 3 | . . 3 . . . . . . . . . Damage (major) 4 | . . 4 . . . . . . . . . Damage (core) 1 | . . 1 . . . . . . . . . Siege Activations . | . . . . . . . . . . . . Robots Corrupted . | . . . . . . . . . . . . Combat Hostiles . | . . . . . . . . . . . . Parts Fried 6 | . . 1 . . 2 . 3 . . . . Impact Corruptions 13 | . 4 1 . . 4 . 3 . . . 1 Robots Melted 1 | . . 1 . . . . . . . . . Combat Hostiles 1 | . . 1 . . . . . . . . . Parts Melted 4 | . 2 2 . . . . . . . . . Heat Transferred 1348 | . 619 629 . . . . 100 . . . . Parts Sabotaged . | . . . . . . . . . . . . Parts Stolen . | . . . . . . . . . . . . Parts Stripped . | . . . . . . . . . . . . Power Chain Reactions . | . . . . . . . . . . . . Missiles Intercepted . | . . . . . . . . . . . . Alert | -11 -10 -10 -10 -9 -8 -7 -6 -5 -5 -5 -5 ------- Run | Scr Mat Min Exi Min Mat Fac Fac Fac Upp Upp War Peak Influence 342 | 25 171 74 . . 342 176 139 48 . . . Initial 133 | . 16 29 . . . 133 16 2 . . . Average 97 | 9 67 45 . . 160 68 41 20 . . . Maximum Alert Level 1 | . . . . . 1 . . . . . . Low Security (%) 84 | 100 100 100 . 100 63 100 100 100 . . . Level 1 15 | . . . . . 36 . . . . . . Level 2 . | . . . . . . . . . . . . Level 3 . | . . . . . . . . . . . . Level 4 . | . . . . . . . . . . . . Level 5 . | . . . . . . . . . . . . High Security . | . . . . . . . . . . . . Max Security . | . . . . . . . . . . . . Squads Dispatched 12 | . 3 . . . 3 3 2 1 . . . Investigation 4 | . 1 . . . 1 2 . . . . . Extermination 2 | . . . . . . 1 1 . . . . Reinforcement 6 | . 2 . . . 2 . 1 1 . . . Assault . | . . . . . . . . . . . . Garrison . | . . . . . . . . . . . . Intercept . | . . . . . . . . . . . . Searches Triggered . | . . . . . . . . . . . . Construction Impeded 1 | . . . . . . . . 1 . . . Haulers Reinforced . | . . . . . . . . . . . . Active Scanning Responses . | . . . . . . . . . . . . Cargo Convoy Interrupts . | . . . . . . . . . . . . Stealth | -11 -10 -10 -10 -9 -8 -7 -6 -5 -5 -5 -5 --------- Run | Scr Mat Min Exi Min Mat Fac Fac Fac Upp Upp War Distress Signals 8 | . 3 . . . 3 . 1 . . . 1 Communications Jammed . | . . . . . . . . . . . . Distress Signals . | . . . . . . . . . . . . Times Spotted 152 | . 28 3 . . 54 2 30 . . 10 25 Peak Tracking Total 19 | . 7 3 . . 5 1 6 . . 4 19 Tactical Retreats 15 | . 1 . . . 6 . 3 . . 1 4 Traps | -11 -10 -10 -10 -9 -8 -7 -6 -5 -5 -5 -5 ------- Run | Scr Mat Min Exi Min Mat Fac Fac Fac Upp Upp War Traps Triggered 8 | . 3 . . . . . 4 . . . 1 Indirectly . | . . . . . . . . . . . . Trap Hack Attempts . | . . . . . . . . . . . . Triggered . | . . . . . . . . . . . . Disarmed . | . . . . . . . . . . . . Reprogrammed . | . . . . . . . . . . . . Reused . | . . . . . . . . . . . . Traps Extracted . | . . . . . . . . . . . . Installed . | . . . . . . . . . . . . Triggered 14 | . . . . . . . . . . 1 13 Exploded 2 | . . . . . 2 . . . . . . Machines | -11 -10 -10 -10 -9 -8 -7 -6 -5 -5 -5 -5 ---------- Run | Scr Mat Min Exi Min Mat Fac Fac Fac Upp Upp War Machines Disabled 10 | . . . . . 3 1 6 . . . . Max in Single Turn 4 | . . . . . 1 1 4 . . . . Garrison Access 2 | . . . . . 1 . 1 . . . . Machines Sabotaged . | . . . . . . . . . . . . Garrisons Compromised . | . . . . . . . . . . . . Overloaded Fab Kills . | . . . . . . . . . . . . Hacking | -11 -10 -10 -10 -9 -8 -7 -6 -5 -5 -5 -5 --------- Run | Scr Mat Min Exi Min Mat Fac Fac Fac Upp Upp War Machines Accessed 35 | . 8 . 1 . 8 9 5 2 . . 2 Terminals 16 | . 6 . . . 3 3 3 1 . . . Fabricators 3 | . . . . . . 3 . . . . . Repair Stations 2 | . . . . . 2 . . . . . . Recycling Units 6 | . 2 . . . 1 2 . 1 . . . Scanalyzers 3 | . . . . . 1 1 1 . . . . Garrison Access 2 | . . . . . 1 . 1 . . . . Total Hacks 102 | . 30 . 1 . 29 22 11 6 . . 3 Successful 59 | . 16 . 1 . 18 13 4 4 . . 3 Failed 43 | . 14 . . . 11 9 7 2 . . . Catastrophic 7 | . 1 . . . 2 1 2 1 . . . Database Lockouts . | . . . . . . . . . . . . Manual 45 | . 19 . 1 . 5 10 6 4 . . . Terminals 50 | . 26 . . . 8 6 6 4 . . . Fabricators 9 | . . . . . . 9 . . . . . Repair Stations 10 | . . . . . 10 . . . . . . Recycling Units 10 | . 4 . . . 1 3 . 2 . . . Scanalyzers 16 | . . . . . 8 4 4 . . . . Garrison Access 3 | . . . . . 2 . 1 . . . . Terminal Hacks 15 | . 9 . 1 . 1 . . 1 . . 3 Record 3 | . 1 . . . . . . . . . 2 Robot Analysis 2 | . 2 . . . . . . . . . . Open Door 1 | . . . . . . . . . . . 1 Branch Access Points 1 | . 1 . . . . . . . . . . Terminal Index 2 | . 1 . . . . . . 1 . . . Unreport Threat 1 | . . . . . 1 . . . . . . Dispatch Records 1 | . 1 . . . . . . . . . . Registered Components 1 | . 1 . . . . . . . . . . Zone Layout 2 | . 2 . . . . . . . . . . EX-Prototype ID Bank 1 | . . . 1 . . . . . . . . Fabricator Hacks 4 | . . . . . . 4 . . . . . Load Schematic 2 | . . . . . . 2 . . . . . Build 2 | . . . . . . 2 . . . . . Repair Station Hacks 6 | . . . . . 6 . . . . . . Scan Component 3 | . . . . . 3 . . . . . . Repair 3 | . . . . . 3 . . . . . . Recycling Unit Hacks 8 | . 3 . . . 1 2 . 2 . . . Report Inventory 6 | . 2 . . . 1 2 . 1 . . . Retrieve Matter 1 | . 1 . . . . . . . . . . Retrieve Components 1 | . . . . . . . . 1 . . . Scanalyzer 14 | . . . . . 8 4 2 . . . . Insert Component 7 | . . . . . 4 2 1 . . . . Analyze 7 | . . . . . 4 2 1 . . . . Garrison Access Hacks 2 | . . . . . 1 . 1 . . . . Seal Access 2 | . . . . . 1 . 1 . . . . Unauthorized Hacks 10 | . 4 . . . 1 3 1 1 . . . Terminals 8 | . 4 . . . 1 1 1 1 . . . Assimilate 1 | . . . . . . . 1 . . . . Botnet 6 | . 3 . . . 1 1 . 1 . . . Operators 1 | . 1 . . . . . . . . . . Fabricators 2 | . . . . . . 2 . . . . . Prioritize 2 | . . . . . . 2 . . . . . Repair Stations . | . . . . . . . . . . . . Recycling Units . | . . . . . . . . . . . . Scanalyzers . | . . . . . . . . . . . . Garrison Access . | . . . . . . . . . . . . Data Cores Recovered . | . . . . . . . . . . . . Used . | . . . . . . . . . . . . Hacking Detections 25 | . 7 . . . 5 8 3 2 . . . Full Trace Events 5 | . 2 . . . 1 2 . . . . . Feedback Events 1 | . 1 . . . . . . . . . . Corruption 1 | . 1 . . . . . . . . . . Feedback Blocked . | . . . . . . . . . . . . Robot Schematics Acquired . | . . . . . . . . . . . . Robots Built . | . . . . . . . . . . . . Authchips . | . . . . . . . . . . . . Time . | . . . . . . . . . . . . Total Robot Build Rating . | . . . . . . . . . . . . Part Schematics Acquired 7 | . . . . . 4 2 1 . . . . Parts Built 2 | . . . . . . 2 . . . . . Authchips . | . . . . . . . . . . . . Time 72 | . . . . . . 72 . . . . . Total Part Build Rating 6 | . . . . . . 6 . . . . . Parts Repaired 3 | . . . . . 3 . . . . . . Time 65 | . . . . . 65 . . . . . . Parts Recycled . | . . . . . . . . . . . . Recycled Matter . | . . . . . . . . . . . . Retrieved Matter . | . . . . . . . . . . . . Retrieved Components 3 | . . . . . . . . 3 . . . Parts Scanalyzed 7 | . . . . . 4 2 1 . . . . Part Schematics Acquired 7 | . . . . . 4 2 1 . . . . Parts Damaged . | . . . . . . . . . . . . Bothacking | -11 -10 -10 -10 -9 -8 -7 -6 -5 -5 -5 -5 ------------ Run | Scr Mat Min Exi Min Mat Fac Fac Fac Upp Upp War Used RIF Installer . | . . . . . . . . . . . . Robots Hacked 1 | . . . . . . . 1 . . . . Non-combat . | . . . . . . . . . . . . Combat 1 | . . . . . . . 1 . . . . Robot Hacks Applied 1 | . . . . . . . 1 . . . . parse_system 1 | . . . . . . . 1 . . . . Relay Couplers Released . | . . . . . . . . . . . . Fabnet Peak Effective % . | . . . . . . . . . . . . Robots Rewired . | . . . . . . . . . . . . Allies Hacked . | . . . . . . . . . . . . Hacks Repelled . | . . . . . . . . . . . . Allies | -11 -10 -10 -10 -9 -8 -7 -6 -5 -5 -5 -5 -------- Run | Scr Mat Min Exi Min Mat Fac Fac Fac Upp Upp War Total Allies 5 | . . 1 . 1 . . 3 . . . . Largest Group 2 | . . 1 1 1 1 . 2 . . . . Highest-Rated Group 62 | . . 31 31 31 31 . 62 . . . . Highest-Rated Ally 31 | . . 31 31 31 31 . 31 . . . . Total Orders . | . . . . . . . . . . . . Ally Attacks 43 | . . . . . 9 . 34 . . . . Total Damage 713 | . . . . . 123 . 590 . . . . Kills 13 | . . . . . 1 . 12 . . . . Allies Corrupted . | . . . . . . . . . . . . Allies Melted . | . . . . . . . . . . . . Intel | -11 -10 -10 -10 -9 -8 -7 -6 -5 -5 -5 -5 ------- Run | Scr Mat Min Exi Min Mat Fac Fac Fac Upp Upp War Robot Analysis Total 2 | . 2 . . . . . . . . . . Derelict Logs Recovered 5 | . . 1 . 1 . . . . 1 2 . Drone Launches . | . . . . . . . . . . . . Drone Recoveries . | . . . . . . . . . . . . Exploration | -11 -10 -10 -10 -9 -8 -7 -6 -5 -5 -5 -5 ------------- Run | Scr Mat Min Exi Min Mat Fac Fac Fac Upp Upp War Turns Passed 10791 | 145 1492 394 451 195 3366 1061 1228 211 207 578 1463 Spaces Moved 6487 | 103 752 240 442 184 1289 610 577 166 214 556 1354 Core 57 | 1 . . . . 8 . 46 . . . 2 Treads 1872 | . 536 132 . . 759 307 138 . . . . Legs 44 | . . . . . . . . . . . 44 Wheels 4432 | 102 216 108 442 184 522 303 393 166 214 556 1226 Hover 82 | . . . . . . . . . . . 82 Flight . | . . . . . . . . . . . . Fastest Speed 50 | 50 80 105 90 105 50 130 80 80 97 97 82 Average Speed 132 | 79 141 135 100 105 188 138 160 93 97 97 100 Slowest Speed 750 | 80 160 240 105 105 600 225 750 97 97 97 450 Overloaded Moves . | . . . . . . . . . . . . Propulsion Burnouts . | . . . . . . . . . . . . Robots Hopped . | . . . . . . . . . . . . Cave-ins Triggered 1 | . . . . . . . 1 . . . . Exploration Rate (%) 47 | 5 93 36 90 52 74 17 19 4 33 58 93 Regions Visited 11 Branch Regions 6 Pre-discovered Areas 1 | . . . . 1 . . . . . . . Known Exits Taken 4 | . 1 1 . . . . . . 1 1 . Unknown Exits Taken 7 | 1 . . 1 1 1 1 1 1 . . . Scrap Searched 5 | . . 1 . 3 . . . . . 1 . Spaces Dug 115 | . 21 . . . 19 20 29 26 . . . Terrain Destroyed 282 | . 21 . . . 19 20 106 26 . 86 4 Melee 93 | . 14 . . . 19 20 29 11 . . . Projectile 11 | . 7 . . . . . . . . . 4 AOE 178 | . . . . . . . 77 15 . 86 . Terrain Rammed . | . . . . . . . . . . . . Walls Destroyed . | . . . . . . . . . . . . Machines Disabled . | . . . . . . . . . . . . Actions | -11 -10 -10 -10 -9 -8 -7 -6 -5 -5 -5 -5 --------- Run | Scr Mat Min Exi Min Mat Fac Fac Fac Upp Upp War Total 8008 | 134 988 289 449 186 1972 768 768 198 213 575 1468 Wait 665 | . 78 32 . . 377 98 65 7 . . 8 Move 6476 | 102 751 239 441 183 1288 609 576 165 213 555 1354 Hop . | . . . . . . . . . . . . Pick Up 116 | 9 14 . 4 1 44 5 8 8 . 2 21 Fast Attach 72 | 7 5 . . . 29 3 15 4 . 1 8 Attach 47 | 1 3 5 1 1 9 3 15 . . 1 8 Detach 11 | . 1 . 2 . 2 3 . . . . 3 Swap 66 | . 15 2 . . 29 5 6 . . . 9 Drop 101 | 1 12 1 1 1 51 4 9 . . 2 19 Fire 240 | 14 82 9 . . 106 3 10 1 . 13 2 Melee 190 | . 27 1 . . 37 35 56 13 . 1 20 Ram 16 | . . . . . . . . . . . 16 Kick . | . . . . . . . . . . . . Crush . | . . . . . . . . . . . . Escape Stasis 8 | . . . . . . . 8 . . . . Rewire . | . . . . . . . . . . . . Trap . | . . . . . . . . . . . . Miscellaneous . | . . . . . . . . . . . . Route ------- -11/Scrapyard -10/Materials (discovered 4 exits: [*Mat x2] / *Min x2) -10/Mines (discovered 2 exits: [*Mat] / *Exi) -10/Exiles -9/Mines -8/Materials -7/Factory -6/Factory (discovered 2 exits: *Fac x2) -5/Factory -5/Upper Caves -5/Upper Caves (discovered 2 exits: [*Fac] / *War) -5/Warlord (discovered 1 exit: *Pro) History --------- Turn | Location | Event 37 | -11/Scrapyard | Discovered new exit (range 15) 146 | -11/Scrapyard | Entered Materials 172 | -10/Materials | Discovered new exit (range 16) 259 | -10/Materials | Identified exit to Mines 302 | -10/Materials | Discovered new exit (range 5) 304 | -10/Materials | Build established: Mutant 1265 | -10/Materials | Discovered new exit (range 15) 1638 | -10/Materials | Entered Mines 1662 | -10/Mines | Discovered new exit (range 10) 1836 | -10/Mines | Identified exit to Exiles 1875 | -10/Mines | Core integrity fell below 50% 1922 | -10/Mines | Escorted by a lone wolf Derelict 1941 | -10/Mines | Lost 4 parts (1p2n1w) 2028 | -10/Mines | Deemed a non-threat by the Exiles lab entrance 2032 | -10/Mines | Entered Exiles 2032 | -10/Exiles | Accompanied by 1 ally 2062 | -10/Exiles | Met 8R-AWN 2077 | -10/Exiles | Met EX-HEX 2106 | -10/Exiles | Met EX-BIN 2118 | -10/Exiles | Aligned with FarCom system 2119 | -10/Exiles | Given EX-Vault access code 2140 | -10/Exiles | Opened EX-Vault 2146 | -10/Exiles | Found AWS/Thermal 2168 | -10/Exiles | Warned to stay clear of 0b10 Research branches 2198 | -10/Exiles | Met EX-DEC 2298 | -10/Exiles | Visited The Gauntlet 2469 | -10/Exiles | Discovered new exit (range 14) 2483 | -10/Exiles | Left Exiles lab with AWS/Thermal 2483 | -10/Exiles | Entered Mines 2610 | -9/Mines | Learned location of Zion (-6) 2669 | -9/Mines | Received a Mining Laser from a helpful Derelict 2672 | -9/Mines | Discovered new exit (range 7) 2678 | -9/Mines | Entered Materials 2678 | -8/Materials | Accompanied by 1 ally 2678 | -8/Materials | Evolved 4 slots: Utility x4 3181 | -8/Materials | Lost 7 parts (2p1n4u) 4238 | -8/Materials | Build established: Scavenger-Mutant 4580 | -8/Materials | Repaired Lgt. Armor Plating 4691 | -8/Materials | Repaired Lgt. Armor Plating 4718 | -8/Materials | Repaired Com. Wheel 5570 | -8/Materials | Build established: Assassin 6028 | -8/Materials | Discovered new exit (range 5) 6044 | -8/Materials | Entered Factory 6044 | -7/Factory | Evolved 2 slots: Propulsion x1, Utility x1 6515 | -7/Factory | Fabricated System Shield? 6537 | -7/Factory | Fabricated System Shield? 6933 | -7/Factory | Build established: Hacker-Assassin 7084 | -7/Factory | Discovered new exit (range 15) 7105 | -7/Factory | Entered another Factory area 7105 | -6/Factory | Evolved 2 slots: Propulsion x1, Utility x1 7530 | -6/Factory | Allied Derelicts emerged from ambush trap array 7652 | -6/Factory | Assembled infested ambush trap array 7767 | -6/Factory | Lost 10 parts (1p3n4u2w) 7956 | -6/Factory | Discovered new exit (range 14) 7972 | -6/Factory | Core integrity fell below 50% 8023 | -6/Factory | Core integrity fell below 20% 8048 | -6/Factory | Lost 14 parts (1p4n7u2w) 8265 | -6/Factory | Crushed by falling debris 8265 | -6/Factory | System corruption reached 10% 8296 | -6/Factory | Lost 3 parts (2u1w) 8314 | -6/Factory | Discovered new exit (range 3) 8333 | -6/Factory | Entered another Factory area 8333 | -5/Factory | Evolved 2 slots: Propulsion x1, Utility x1 8378 | -5/Factory | Build established: Hacker-Mutant 8466 | -5/Factory | Found Prototype Launcher 8466 | -5/Factory | Identified Mni. Smartbomb Launcher 8468 | -5/Factory | Found Faulty Mni. Smartbomb Launcher 8470 | -5/Factory | Found Mni. Smartbomb Launcher 8480 | -5/Factory | Found Mni. Smartbomb Launcher 8481 | -5/Factory | Found Mni. Smartbomb Launcher 8483 | -5/Factory | Found Mni. Smartbomb Launcher 8485 | -5/Factory | Found Faulty Mni. Smartbomb Launcher 8537 | -5/Factory | Discovered new exit (range 8) 8544 | -5/Factory | Entered Upper Caves 8548 | -5/Upper Caves | Identified exit to Upper Caves 8602 | -5/Upper Caves | Spotted B-75 Beast 8751 | -5/Upper Caves | Entered another Upper Caves area 8756 | -5/Upper Caves | Learned Factory stockpile data 8783 | -5/Upper Caves | Discovered new exit (range 15) 8941 | -5/Upper Caves | Learned 8 Factory zone layouts 9304 | -5/Upper Caves | Discovered new exit (range 15) 9311 | -5/Upper Caves | Build established: Scavenger-Mutant 9328 | -5/Upper Caves | Identified exit to Warlord 9329 | -5/Upper Caves | Entered Warlord 9406 | -5/Warlord | Discovered new exit (range 9) 9413 | -5/Warlord | Identified exit to Proximity Caves 9870 | -5/Warlord | Met Warlord 9878 | -5/Warlord | Warlord's base attacked by MAIN.C 10031 | -5/Warlord | Found Prototype Energy Gun 10033 | -5/Warlord | Found Prototype Energy Cannon 10228 | -5/Warlord | Warlord forces counterattacked 10506 | -5/Warlord | Identified Vortex Rail 10508 | -5/Warlord | Identified Vortex Driver 10553 | -5/Warlord | Warlord base infiltrated, sounded retreat 10701 | -5/Warlord | Spotted Executioner 10778 | -5/Warlord | Spotted Executioner 10778 | -5/Warlord | Spotted Executioner 10782 | -5/Warlord | System corruption reached 10% 10783 | -5/Warlord | Spotted Executioner 10785 | -5/Warlord | Core integrity fell below 50% 10791 | -5/Warlord | Core integrity fell below 20% 10792 | -5/Warlord | Destroyed by H-77 Assassin with Coil Gun Last Messages --------------- 10789_ Slug penetrates Executioner. 10789_ Penetrated by Slug. 10789_ H-77 Assassin knocked back. 10789_ Executioner knocked back. 10789_ Penetrated by Slug. 10789_ Slug penetrates Earth. 10790_ R1TR45 |SJL%RC4KLONLH>9WG 10790_ Penetrated by Slug. 10790_ Slug penetrates Wall. 10790_ Penetrated by Slug. 10790_ Slug penetrates Wall. 10791_ Adv. Melee Analysis Suite destroyed. 10791_ System Shield destroyed. 10791_ System corrupted by crushing effect (+5). 10791_ System corrupted by crushing effect (+1). 10791_ Slug penetrates S-27 Virus. 10791_ S-27 Virus destroyed. 10791_ Slug penetrates B-60 Warrior. 10791_ Penetrated by Slug. 10791_ Slug penetrates Earth. Map ----- +----------------------------------------------------+ | | | | | | | | | | | | | | | | | | | ??????????????????????????????????? | | ??????????????????????????????????? | | ??????????????????????????????????? | | ??????????????????????????????????? | | ??????????????????????????????????? | | ??????????????????????????????????? | | ??????????????????????????????????? | | ??????????????????????????????????? | | ??????????????????????????????????? | | ??????????????????????????????????? | | ????????????????????????????##????? | | ????????????####????????#### #????? | | ???????????## ##???????#;#;;#????? | | ??????????## #????#??#; ###??? | | ??????????# #????# ## E x #### | | ??????????# ##???##;; h h < | | ??????????# #???# ; @% < | | ??????????# ##??##; bbE / ##?? | | ??????????## #?# ; g %;#??? | | ???????????### #### ;; gg% ;#??? | | ?????????????## ### # E% %=##??? | | ??????????????## ## ## p ;#???? | | ???????????????# # ## ##???? | | ???????????????# s E ###?? | | ???????????????#; #%ph # ##? | | "??????????????### h %# #? | | "#???????????????#"# *= ### ## | | "#???????????????# # [=#? # | | "#???????????????# #* %%## # | | "###?????????????# ## %! ## # | | ""[#####?????????# #?## % # ## | | "[!%%""########### #??##% ## ##? | | "%[[!= !*"" "" ###### # #?? | | " *%[%%[=%% =%"%[#=##### ##?? | | [=%[%*==[=!!*=%# [ ## ##??? | | = %*%==%%%!%%!"% = %] #??? | | %%]=[%%=%%!%!![ = %="### #??? | | %!!%%=!!%[!!!![##%=!!% "#?# #??? | | ![%!*[%|%=[! "# #*=== ###?# ##?? | | "=*= =%%= "%"""#####% #?### #?? | | "*!%[%###########???# #### # #?? | +----------------------------------------------------+ Best States ------------- Heat Dissipation 45 Energy Generation 19 Energy Capacity 315 Matter Stores 328 Matter Capacity 500 Sight Range 16 Terrain Scan Range 16 Terrain Scan Density 210 Cloak Strength 2 Armor Coverage 600 Resistance: TH 10 Core Shielding 20 Propulsion Shielding 66 Weapon Shielding 33 Melee Speed Boost 20 Evasion (%) 55 Targeting Accuracy 5 Melee Accuracy 8 Recoil Reduction 2 Offensive Hacking 20 Defensive Hacking 20 Item Schematics ----------------- Hacking Suite | -8/Materials | Scanalyzed Imp. Light Armor Plating | -8/Materials | Scanalyzed Spear | -8/Materials | Scanalyzed System Shield | -8/Materials | Scanalyzed Microactuators | -7/Factory | Scanalyzed Great Maul | -7/Factory | Scanalyzed Hvy. Rocket Launcher | -6/Factory | Scanalyzed Robot Schematics ------------------ None Fabricated ------------ System Shield | x1 | -7/Factory System Shield | x1 | -7/Factory Alien Tech Used ----------------- None Achievements -------------- A Powerful Ally? Challenges ------------ None Game ------ Seed CompositeMissileStorage Manual? 0 Play Time 02:36:07 Cumulative 111.7 hours Start 2022.07.30 @ 10:41:11 End 2022.07.30 @ 13:37:03 Sessions 5 Manual Loads 0 Difficulty Rogue Special Mode None Game No. 70 Rogue 69 Adventurer 0 Explorer 1 Win Type - Total 0 Types 0/0/0/0/0/0/0/0/0 Lore% 29 Gallery% 38 Achievement% 30 Wizard Run 0 Options --------- ASCII 0 Keyboard 0 Movement Mouse Keybinds 0 Fullscreen 0 Font 16/Dina Map View 76x50 Tactical HUD 1 Map Filters NONE Filters NONE Steam 1 RUN: 6bcbf3b4-04a2-4a97-b8d7-cc62fc396c23